[Event "Israeli Championship 2022"]
[Site "Yosiah Arad"]
[Date "2022.12.09"]
[Round "5.2"]
[White "Parkhov, Yair"]
[Black "Bronstein, Or"]
[Result "1/2-1/2"]
[ECO "B96"]
[WhiteElo "2470"]
[BlackElo "2442"]
[Annotator "TA"]
[PlyCount "51"]
[EventDate "2022.12.05"]
[EventType "swiss"]
[EventCountry "ISR"]
[SourceTitle "playchess.com"]
[Source "ChessBase"]
[SourceQuality "1"]
[TimeControl "40/5400+30:1800+30"]

{[%evp 15,51,18,29,0,0,0,0,0,0,-15,-7,-17,-12,-20,-16,-12,-12,-8,-6,-8,8,0,0,0,0,0,0,0,8,5,9,0,0,0,0,0,0,0]} 1. e4 {[%emt 0:00:08]} c5 {[%emt 0:00:28]} 2. Nf3 {[%emt 0:00:06]} d6 {[%emt 0:00:05]} 3. d4 {[%emt 0:00:09]} cxd4 {[%emt 0:00:06]} 4. Nxd4 {[%emt 0:00:06]} Nf6 {[%emt 0:00:04]} 5. Nc3 {[%emt 0:00:07]} a6 {[%emt 0:00:04]} 6. Bg5 {[%emt 0:00:11]} e6 {[%emt 0:05:25]} 7. f4 {[%emt 0:00:10]} h6 {[%emt 0:01:37]} 8. Bh4 {[%emt 0:00:43]} Qb6 {[%emt 0:00:02]} 9. Qd3 {[%emt 0:01:47] B96: Sicilian Najdorf: 6 Bg5 e6 7 f4, lines other than 7...Qb6 and 7...Be7.} Qxb2 {[%emt 0:00:40] The position is equal.} 10. Rb1 {[%emt 0:00:10]} Qa3 {[%emt 0:00:01]} 11. f5 {[%emt 0:00:19]} Be7 {[%emt 0:03:49]} 12. fxe6 {[%emt 0:00:24]} Bxe6 {[%emt 0:02:11]} 13. e5 {[%emt 0:00:42]} (13. Rxb7 Nbd7 14. Be2 Rc8 15. Nxe6 (15. Qxa6 $2 Qxc3+ 16. Kf1 Qxd4 $19) 15... fxe6 $15) 13... dxe5 {[%emt 0:00:37]} 14. Nxe6 {[%emt 0:00:09]} fxe6 {[%emt 0:00:02]} 15. Bxf6 $1 {[%emt 0:00:25]} (15. Rxb7 O-O 16. Nd1 (16. Qg3 $2 Nh5 $19) 16... Nc6 17. Bxf6 (17. Qg6 $2 Bb4+ 18. Rxb4 Qxb4+ $19) 17... Rxf6 18. Qxa3 Bxa3 $17) 15... gxf6 {[%emt 0:00:47]} 16. Be2 {[%emt 0:00:07] [#] And now Bh5+ would win.} e4 {[%emt 0:01:59]} ({Resist} 16... Rg8 17. O-O Rg7 18. Kh1 $16 (18. Rxb7 Nc6 $16) (18. Bh5+ Kf8 $11)) 17. Qc4 {[%emt 0:00:43]} Nc6 {[%emt 0:02:34] [#] Hoping for ...0-0-0.} 18. Bh5+ $146 {[%emt 0:00:51]} ({Predecessor:} 18. Nxe4 Qa5+ 19. c3 Qd5 20. O-O Qxc4 21. Bxc4 f5 22. Ng3 Nd8 23. Nh5 b5 24. Bb3 {½-½ (112) Geske,J (2402)-Maksimenko,A (2547) Austria 2014}) 18... Kf8 {[%emt 0:00:16] White must now prevent ...Na5.} 19. O-O $1 {[%emt 0:00:36]} Qc5+ {[%emt 0:01:21]} 20. Qxc5 {[%emt 0:00:10] Dancing on a razor blade.} Bxc5+ {[%emt 0:00:02]} 21. Kh1 {[%emt 0:00:15]} Bd4 {[%emt 0:01:46]} 22. Nxe4 {[%emt 0:00:44][%cal Oc2c3]} b5 {[%emt 0:00:20]} 23. Nxf6 {[%emt 0:01:14] [#] aiming for Nd5+.} (23. c3 $5 Be5 $8 24. Nxf6 $11) 23... Ke7 $1 {[%emt 0:00:48]} 24. Ne4 {[%emt 0:00:39] Strongly threatening Rf7+.} Rhf8 {[%emt 0:00:32] Inhibits Rf7+.} 25. c3 {[%emt 0:01:20]} Bb6 {[%emt 0:01:32]} 26. Be2 {[%emt 0:01:47] An interesting draw.   Weighted Error Value: White=0.03 (flawless) /Black=0.02 (flawless)} 1/2-1/2

[Event "Israeli Championship 2022"]
[Site "Yosiah Arad"]
[Date "2022.12.09"]
[Round "5.3"]
[White "Yaniv, Yuval"]
[Black "Kochavi, Ori"]
[Result "0-1"]
[ECO "B12"]
[WhiteElo "2343"]
[BlackElo "2326"]
[Annotator "TA"]
[PlyCount "96"]
[EventDate "2022.12.05"]
[EventType "swiss"]
[EventCountry "ISR"]
[SourceTitle "playchess.com"]
[Source "ChessBase"]
[SourceQuality "1"]
[TimeControl "40/5400+30:1800+30"]

{[%evp 9,96,12,47,66,63,23,50,9,0,10,37,-33,-26,-31,-2,-163,-162,-202,-200,-193,-195,-233,-228,-252,-236,-283,-267,-254,-240,-239,-244,-238,-210,-252,-249,-299,-293,-304,-296,-295,-281,-273,-223,-386,-362,-391,-397,-391,-370,-351,-348,-398,-393,-475,-460,-449,-339,-601,-594,-592,-474,-477,-468,-467,-456,-520,-425,-425,-425,-425,-425,-504,-499,-510,-425,-425,-392,-381,-381,-516,-493,-2199,-2199,-1911,-1254,-2528,-2347,-29977,-716]} 1. e4 {[%emt 0:00:16]} c6 {[%emt 0:00:32]} 2. d4 {[%emt 0:00:15]} d5 {[%emt 0:00:03]} 3. e5 {[%emt 0:00:16]} Bf5 {[%emt 0:00:02]} 4. h4 {[%emt 0:00:17]} a6 {[%emt 0:00:54]} 5. a3 {[%emt 0:00:53] [#]} c5 $146 {[%emt 0:17:59]} ({Predecessor:} 5... h5 6. c4 e6 7. Nc3 Ne7 8. Nge2 dxc4 9. Ng3 b5 10. Nxh5 Nd7 11. Ng3 Nb6 12. Bg5 {1-0 (35) Hong,A (2504)-Liang,A (2613) Chess.com INT 2022}) 6. dxc5 {[%emt 0:00:55] B12: Caro-Kann: Advance Variation.} Nc6 {[%emt 0:00:01]} 7. Nf3 {[%emt 0:03:22]} Bg4 {[%emt 0:04:11]} 8. Be2 {[%emt 0:09:28] White is slightly better.} (8. Nc3 e6 $11) 8... e6 {[%emt 0:00:42]} 9. b4 {[%emt 0:00:23]} a5 {[%emt 0:14:13]} 10. c3 {[%emt 0:05:45]} (10. Bg5 $14 f6 11. exf6 gxf6 12. b5 Bxf3 13. bxc6 bxc6 14. Bxf3 fxg5 15. Nc3 (15. Qd4 Qf6 $11)) 10... Bxf3 $15 {[%emt 0:01:56]} 11. gxf3 {[%emt 0:06:45]} Nge7 {[%emt 0:00:32] With the idea ...axb4.} 12. b5 $2 {[%emt 0:14:27] Loses the game.} (12. Nd2 $11) 12... Nxe5 $19 {[%emt 0:00:36]} 13. Qa4 {[%emt 0:00:07]} Nf5 {[%emt 0:06:29]} 14. c6 {[%emt 0:12:07]} bxc6 {[%emt 0:04:23]} 15. bxc6 {[%emt 0:04:04]} Qc7 {[%emt 0:00:39][%cal Of8d6]} 16. Nd2 {[%emt 0:01:37]} Bd6 {[%emt 0:03:01][%cal Oe8g8]} ({Stronger than} 16... Nxc6 17. Bb5 Rc8 18. Nb3 $17) (16... Qxc6 $2 17. Bb5 Rc8 18. Bxc6+ $18) 17. Rb1 {[%emt 0:04:03]} O-O {[%emt 0:00:17][%cal Bh8f8,Bf8c8,Bc8c3][%mdl 32]} ({Don't do} 17... Qxc6 18. Bb5 $18) 18. Rb7 {[%emt 0:01:10]} Qxc6 {[%emt 0:00:53]} 19. Qxc6 {[%emt 0:00:10]} Nxc6 {[%emt 0:00:03] Pair of Knights!} 20. Bd3 {[%emt 0:01:49]} Nce7 {[%emt 0:07:37]} 21. a4 {[%emt 0:01:34]} Rfc8 {[%emt 0:00:34]} 22. Bb2 {[%emt 0:02:05]} Be5 {[%emt 0:03:45]} 23. Nb3 {[%emt 0:01:47]} Bxc3+ {[%emt 0:01:09]} 24. Bxc3 {[%emt 0:01:37]} Rxc3 {[%emt 0:00:03]} 25. Kd2 {[%emt 0:00:07]} Rcc8 {[%emt 0:00:03]} 26. Rb5 $2 {[%emt 0:00:43]} (26. h5 {might work better.}) 26... Nd6 {[%emt 0:02:19]} 27. Rc5 {[%emt 0:02:24]} Rxc5 {[%emt 0:05:05]} 28. Nxc5 {[%emt 0:00:07]} Rc8 {[%emt 0:00:01]} 29. Nb3 {[%emt 0:01:02]} Nc4+ {[%emt 0:00:03]} 30. Ke2 {[%emt 0:01:10]} Nb2 {[%emt 0:01:03]} 31. Bb5 {[%emt 0:02:55]} Rc2+ {[%emt 0:00:14]} 32. Kf1 {[%emt 0:00:07]} Ng6 {[%emt 0:03:10] And now ...Nf4 would win.} 33. Nxa5 $2 {[%emt 0:02:00]} (33. Kg2) 33... Nf4 {[%emt 0:02:42][%cal Rc2c1]} 34. Kg1 {[%emt 0:00:12] [#]} Nxa4 $1 {[%emt 0:01:43][%mdl 512]} 35. Bxa4 {[%emt 0:03:09]} Ra2 {[%emt 0:00:05]} 36. Kh2 {[%emt 0:00:11]} Rxa4 {[%emt 0:00:04][%mdl 4096] Endgame KRN-KRN} 37. Rb1 {[%emt 0:00:23][%cal Rb1b8]} g6 {[%emt 0:00:19]} (37... Rxa5 $2 38. Rb8#) 38. Nc6 {[%emt 0:00:10]} Nd3 {[%emt 0:06:10]} 39. Kg3 {[%emt 0:00:49]} Rc4 {[%emt 0:01:31]} 40. Na5 {[%emt 0:01:26]} Rc3 {[%emt 0:01:15]} 41. Nb3 {[%emt 0:32:16] [#]} Ne1 $1 {[%emt 0:30:33][%mdl 512]} 42. Nd4 {[%emt 0:01:55]} Nc2 {[%emt 0:01:43]} 43. Ne2 {[%emt 0:03:04]} ({But not} 43. Rc1 $2 Nxd4 44. Rf1 Nxf3 $19) 43... Rc4 {[%emt 0:00:06]} 44. Nf4 {[%emt 0:00:47]} Nd4 {[%emt 0:00:12] ...Nf5+ is the strong threat.} 45. h5 {[%emt 0:00:17]} (45. Nd3 $142) 45... Nf5+ {[%emt 0:00:14]} 46. Kg4 {[%emt 0:00:18]} Kg7 {[%emt 0:01:49]} 47. Rb7 {[%emt 0:02:51]} e5 {[%emt 0:00:36]} 48. Kg5 {[%emt 0:00:39]} h6+ {[%emt 0:00:04] Weighted Error Value: White=0.55/Black=0.17 (very precise)} (48... Rxf4 $142 49. h6+ Nxh6 50. Rd7 Rxf3 51. Kh4 Rb3 52. Rd6 Nf5+ 53. Kg5 h6+ 54. Kg4 h5+ 55. Kg5 Nxd6 56. f3 Nf5 57. f4 Rg3#) 0-1

[Event "Israeli Championship 2022"]
[Site "Yosiah Arad"]
[Date "2022.12.09"]
[Round "5.4"]
[White "Kobo, Ori"]
[Black "Dvoirys, Semen I."]
[Result "1-0"]
[ECO "A30"]
[WhiteElo "2554"]
[BlackElo "2461"]
[Annotator "TA"]
[PlyCount "85"]
[EventDate "2022.12.05"]
[EventType "swiss"]
[EventCountry "ISR"]
[SourceTitle "playchess.com"]
[Source "ChessBase"]
[SourceQuality "1"]
[TimeControl "40/5400+30:1800+30"]

{[%evp 26,85,56,41,86,87,85,72,64,54,133,155,151,167,141,143,168,127,155,149,254,241,241,249,177,181,178,159,161,127,197,46,387,358,260,77,92,71,57,25,34,53,67,0,0,0,0,0,495,457,889,916,29984,678,625,0,29984,29985,29984,29984,29995,29996]} 1. Nf3 {[%emt 0:00:05]} c5 {[%emt 0:00:11]} 2. c4 {[%emt 0:00:25]} Nf6 {[%emt 0:00:16]} 3. Nc3 {[%emt 0:00:26]} e6 {[%emt 0:00:21]} 4. g3 {[%emt 0:00:46]} b6 {[%emt 0:00:08]} 5. Bg2 {[%emt 0:00:07]} Bb7 {[%emt 0:00:02]} 6. O-O {[%emt 0:00:20]} Be7 {[%emt 0:00:10]} 7. Re1 {[%emt 0:00:39]} d6 {[%emt 0:00:23]} 8. e4 {[%emt 0:00:28]} a6 {[%emt 0:02:49]} 9. d4 {[%emt 0:00:47]} cxd4 {[%emt 0:00:05]} 10. Nxd4 {[%emt 0:00:07]} Qc7 {[%emt 0:00:03]} 11. Be3 {[%emt 0:01:14]} O-O {[%emt 0:00:20]} 12. Rc1 {[%emt 0:06:21]} Nbd7 {[%emt 0:00:18]} 13. f4 {[%emt 0:00:29]} Rac8 {[%emt 0:02:26]} 14. g4 {[%emt 0:00:27][%cal Bg3g4,Bg4g5][%mdl 32]} (14. f5 $5 {[%cal Rf5e6]}) 14... g6 {[%emt 0:13:43] A30: Symmetrical English: Double Fianchetto and Hedgehog.} (14... Qxc4 $2 15. g5 $18) 15. g5 {[%emt 0:11:52]} Nh5 {[%emt 0:28:25]} 16. f5 {[%emt 0:05:25]} exf5 {[%emt 0:00:24] White is better.} 17. Nxf5 {[%emt 0:05:48][%mdl 64] [#]} Rce8 $146 {[%emt 0:06:13]} (17... Ne5 $14) ({Predecessor:} 17... Ne5 18. Nd5 Bxd5 19. cxd5 Qd7 20. Rxc8 Rxc8 21. Bh3 Kf8 22. Kg2 Rc4 23. b3 Rc3 {½-½ (83) Mekhitarian,K (2554)-Gabdrakhmanov,A (2328) Chess.com INT 2020}) 18. Nd5 $16 {[%emt 0:09:10]} Bxd5 {[%emt 0:00:11]} 19. cxd5 {[%emt 0:01:01]} Qd8 {[%emt 0:00:07][%cal Oe7g5]} 20. h4 {[%emt 0:02:46] White has more active pieces.} Ne5 {[%emt 0:00:36]} 21. Rf1 {[%emt 0:11:44]} b5 {[%emt 0:18:16]} 22. Bh3 $1 {[%emt 0:05:43][%cal Oc1c8] Black must now prevent Rc8!} Ng7 {[%emt 0:07:25]} (22... gxf5 23. Qxh5 fxe4 24. Bf5 $18) (22... Kh8 $16 {keeps fighting.} 23. Kg2 Qb8) 23. Nh6+ $1 $18 {[%emt 0:07:22]} Kh8 {[%emt 0:00:01]} 24. Rc8 {[%emt 0:00:37] Inhibits f6.} Qa5 {[%emt 0:00:22]} 25. Rxe8 {[%emt 0:01:55]} Nxe8 {[%emt 0:00:08]} 26. Bd4 {[%emt 0:01:11]} f6 {[%emt 0:01:47]} 27. Be6 {[%emt 0:07:20] This pair of bishops is nice.} Qxa2 {[%emt 0:03:18]} 28. h5 $2 {[%emt 0:03:14]} (28. b3 $1 $18) 28... Qc4 $2 {[%emt 0:03:22][%mdl 8192]} ({Black should play} 28... Ng7 $1 $14 29. Nf7+ Rxf7 30. Bxf7 Nxh5) 29. b3 {[%emt 0:05:49]} Qc7 {[%emt 0:00:16]} 30. Qe2 $2 {[%emt 0:02:47]} (30. hxg6 $1 $18 {is the precise move to win.} hxg6 31. Ng4 fxg5 32. Rxf8+ Bxf8 33. Qd2) 30... Ng7 $16 {[%emt 0:01:40] [#]} 31. hxg6 {[%emt 0:01:54]} hxg6 {[%emt 0:00:33] [#]} (31... Nxe6 32. dxe6 Qc8 33. Qh5 Qxe6 34. Bxe5 hxg6 {[#]} 35. gxf6 $1 (35. Qxg6 Qxe5 36. Nf5 fxg5 $11) 35... Rxf6 36. Qxg6 (36. Nf7+ Kg8 $18) 36... dxe5 37. Rxf6 Bxf6 38. Nf7+ $18) 32. Nf7+ $1 {[%emt 0:07:33][%mdl 64]} Nxf7 {[%emt 0:00:31]} 33. gxf6 {[%emt 0:00:01]} (33. Bxf6 $2 Bxf6 34. gxf6 Nh5 $19) 33... Ne5 $1 {[%emt 0:00:20]} 34. Bxe5 {[%emt 0:00:48]} ({Much weaker is} 34. fxg7+ Kxg7 35. Rxf8 Kxf8 $11) (34. fxe7 $14 Rxf1+ 35. Kxf1 (35. Qxf1 Qxe7 36. Qf4 Kh7 $11) 35... Qxe7 36. Qh2+ Nh5 37. Bxe5+ dxe5 38. Qxe5+ Qg7 39. Qxg7+ Kxg7 40. d6) 34... dxe5 $11 {[%emt 0:00:12]} 35. fxe7 $40 {[%emt 0:00:22][%mdl 128] Black needs to defend precisely.} ({Reject} 35. fxg7+ Kxg7 36. Rxf8 Bxf8 $17) 35... Qc5+ {[%emt 0:04:59]} 36. Rf2 {[%emt 0:00:54] Chess con chili.} Re8 {[%emt 0:06:23][%mdl 8192]} (36... Qxe7 $11 {and Black stays safe.} 37. Rxf8+ Qxf8) 37. Bf7 $1 {[%emt 0:00:28][%csl LRe8,LRg6] Intending Qd2 and mate.} Qc1+ {[%emt 0:00:22]} (37... Rxe7 $142 38. Bxg6 Qc1+ 39. Qf1 Qxf1+ 40. Kxf1 Kg8) 38. Qf1 $18 {[%emt 0:00:30]} Qg5+ {[%emt 0:00:56]} 39. Qg2 {[%emt 0:00:28]} (39. Rg2 $142 Qxe7 40. Rxg6 Qc5+ 41. Kh2 Nh5 42. Rh6+ Kg7 43. Rg6+ Kh8 44. Rh6+ Kg7 45. Rxh5) 39... Qc1+ {[%emt 0:00:23]} 40. Qf1 {[%emt 0:00:33]} (40. Kh2 $18 Qh6+ 41. Qh3 Qxh3+ 42. Kxh3 Rxe7 43. Bxg6) 40... Qg5+ {[%emt 0:00:19]} 41. Rg2 {[%emt 0:03:42] White mates.} Qe3+ {[%emt 0:11:00]} 42. Kh1 {[%emt 0:00:25]} Rxe7 {[%emt 0:01:21]} 43. Rh2+ {[%emt 0:00:27] Weighted Error Value: White=0.57/Black=0.75} 1-0

[Event "Israeli Championship 2022"]
[Site "Yosiah Arad"]
[Date "2022.12.09"]
[Round "5.5"]
[White "Sokolovsky, Yahli"]
[Black "Erenberg, Ariel"]
[Result "1/2-1/2"]
[ECO "C93"]
[WhiteElo "2414"]
[BlackElo "2514"]
[Annotator "TA"]
[PlyCount "135"]
[EventDate "2022.12.05"]
[EventType "swiss"]
[EventCountry "ISR"]
[SourceTitle "playchess.com"]
[Source "ChessBase"]
[SourceQuality "1"]
[TimeControl "40/5400+30:1800+30"]

{[%evp 32,135,37,32,39,35,42,38,36,25,23,22,27,35,72,85,64,71,94,74,168,55,52,36,70,0,94,62,108,52,58,28,37,30,99,0,164,136,141,121,132,128,173,198,453,455,445,443,965,965,958,965,965,965,965,965,958,958,927,942,941,939,864,809,809,745,741,741,707,697,1819,1510,1397,1111,1019,434,458,458,458,458,458,444,760,760,731,710,713,704,704,0,649,646,642,617,762,0,0,0,0,0,0,0,0,0,0,0]} 1. e4 {[%emt 0:00:03]} e5 {[%emt 0:00:07]} 2. Nf3 {[%emt 0:00:04]} Nc6 {[%emt 0:00:05]} 3. Bb5 {[%emt 0:00:06]} a6 {[%emt 0:00:11]} 4. Ba4 {[%emt 0:00:07]} Nf6 {[%emt 0:00:10]} 5. O-O {[%emt 0:00:18]} Be7 {[%emt 0:00:24]} 6. Re1 {[%emt 0:00:11]} b5 {[%emt 0:00:08]} 7. Bb3 {[%emt 0:00:03]} d6 {[%emt 0:00:11]} 8. c3 {[%emt 0:00:09]} O-O {[%emt 0:00:19]} 9. h3 {[%emt 0:00:10]} Bb7 {[%emt 0:03:49]} 10. d4 {[%emt 0:00:47]} Re8 {[%emt 0:00:28]} 11. Ng5 {[%emt 0:02:10]} Rf8 {[%emt 0:00:09]} 12. Nf3 {[%emt 0:00:04]} h6 {[%emt 0:00:28]} 13. Nbd2 {[%emt 0:00:49]} Re8 {[%emt 0:00:09]} 14. Nf1 {[%emt 0:06:46]} Bf8 {[%emt 0:00:32]} 15. Ng3 {[%emt 0:00:07]} Na5 {[%emt 0:00:05]} 16. Bc2 {[%emt 0:00:31]} Nc4 {[%emt 0:00:09]} 17. a4 {[%emt 0:04:47]} Nb6 {[%emt 0:18:14] C93: Closed Ruy Lopez: Smyslov Variation.} 18. a5 {[%emt 0:00:58]} Nbd7 {[%emt 0:00:09]} 19. b3 {[%emt 0:04:50]} g6 {[%emt 0:01:00] White is slightly better.} 20. d5 {[%emt 0:02:34]} c6 {[%emt 0:02:37][%cal Rc6d5]} 21. c4 {[%emt 0:00:07]} bxc4 {[%emt 0:01:21]} 22. bxc4 {[%emt 0:00:04]} Nc5 {[%emt 0:01:23]} 23. Be3 {[%emt 0:02:13] [#]} Nfd7 $146 {[%emt 0:00:07]} ({Predecessor:} 23... Qc7 24. Qd2 Kh7 {½-½ (22) Lengyel,B (2267)-Szalanczy,E (2280) Budapest 2010}) 24. Qd2 {[%emt 0:04:14]} h5 {[%emt 0:02:20]} 25. Ra3 {[%emt 0:10:26][%cal Of3h4]} Rb8 {[%emt 0:01:48] [#]} (25... Be7 $16) 26. Bg5 {[%emt 0:05:02]} (26. Nh4 $1 $18 {[%mdl 512]}) 26... Be7 $14 {[%emt 0:05:27]} 27. Bh6 {[%emt 0:03:55][%cal Og3h5] Threatens to win with Nxh5!} Ba8 {[%emt 0:02:01] [#]} 28. Ng5 {[%emt 0:29:13]} (28. Nxh5 $1 $14 gxh5 29. Nd4) 28... Bf8 {[%emt 0:12:24]} (28... Rb2 $11) 29. Bxf8 $1 $16 {[%emt 0:07:29]} Nxf8 {[%emt 0:01:20] [#]} (29... Rxf8 $14 {deserves consideration.} 30. Nxh5 gxh5) 30. Nxf7 $1 {[%emt 0:12:30][%mdl 512]} Kxf7 $14 {[%emt 0:00:14]} 31. Qh6 {[%emt 0:00:13]} Kg8 $1 {[%emt 0:15:42]} 32. Nxh5 $1 {[%emt 0:00:04][%csl Gh5][%cal Rh6g7][%mdl 64]} Qe7 {[%emt 0:03:02] [#] Prevents Qg7+.} (32... Rb7 $11 {keeps the balance.} 33. Rg3 (33. dxc6 $2 Rh7 $19) 33... Rh7 34. Rxg6+ Nxg6 35. Qxg6+ Kh8) 33. Ba4 {[%emt 0:03:31]} Rec8 {[%emt 0:09:27] [#]} (33... gxh5 34. Rg3+ (34. dxc6 $2 Nfe6 $19) (34. dxc6 $2 Nfe6 $19)) (33... Nxa4 $2 34. Rf3 $1 $18) (33... Rbc8 $11) 34. Rg3 $1 $18 {[%emt 0:01:37][%mdl 1088] White has strong compensation. Really sharp!} Ncd7 {[%emt 0:02:07]} (34... Nxa4 $2 35. Rf3 $18) 35. Ree3 $1 {[%emt 0:00:31] White is much more active.} Qh7 {[%emt 0:01:24]} 36. Qg5 {[%emt 0:00:00]} Rb1+ {[%emt 0:05:09]} 37. Kh2 {[%emt 0:00:01]} Rb4 $2 {[%emt 0:00:18]} (37... Rbb8 38. Ref3 Kh8) 38. Bd1 {[%emt 0:01:35] Hoping for Bg4.} cxd5 {[%emt 0:00:58]} (38... Rxc4 39. dxc6 R4xc6 40. Ba4 $16) 39. Bg4 {[%emt 0:00:39]} d4 {[%emt 0:03:14]} (39... dxc4 $2 40. Bxd7 Nxd7 41. Nf6+ Nxf6 42. Qxf6) (39... Kh8 $142 40. Nf6 Nxf6 41. Qxf6+ (41. Bxc8 Nxe4 42. Qd8 Nxg3 $18) 41... Qg7 42. Qh4+ Qh7 43. Qxh7+ Kxh7) 40. Bxd7 {[%emt 0:00:59]} Nxd7 {[%emt 0:00:14]} 41. Nf6+ {[%emt 0:09:06]} Nxf6 {[%emt 0:00:05]} 42. Qxf6 {[%emt 0:00:04]} dxe3 {[%emt 0:00:11]} 43. Rxg6+ {[%emt 0:00:34]} Qxg6 {[%emt 0:00:20]} 44. Qxg6+ {[%emt 0:00:03]} Kf8 {[%emt 0:02:08]} 45. Qxd6+ {[%emt 0:02:03]} (45. fxe3 Ke7 $11) 45... Ke8 {[%emt 0:00:55]} 46. Qxe5+ {[%emt 0:05:08]} (46. Qxb4 exf2 47. Qa4+ Rc6 $11) 46... Kd8 {[%emt 0:02:19]} 47. Qd6+ {[%emt 0:09:32]} ({Weaker is} 47. fxe3 Rbxc4 48. Qd6+ Ke8 $14) 47... Ke8 {[%emt 0:00:05]} 48. Qxb4 {[%emt 0:03:02]} exf2 {[%emt 0:00:05][%mdl 4096] Endgame KQ-KRB} 49. Qb1 {[%emt 0:01:18]} Ke7 {[%emt 0:01:37]} 50. Kg3 {[%emt 0:02:26]} Rf8 {[%emt 0:00:05]} 51. Qb4+ {[%emt 0:00:06]} Ke8 {[%emt 0:00:06]} 52. Qb8+ {[%emt 0:00:10]} Kf7 {[%emt 0:04:50] [#]} 53. Qa7+ {[%emt 0:01:44]} (53. Qf4+ Kg7 54. Qg5+ Kh8 55. Qh6+ Kg8) (53. Qxf8+ $142 $3 {[%mdl 512]} Kxf8 54. Kxf2) 53... Ke6 {[%emt 0:07:46]} (53... Kg8 {[#]} 54. Qxf2 $1 (54. Qxa6 f1=Q $11) 54... Rxf2 55. Kxf2 Bxe4 56. g4) 54. Qxa6+ {[%emt 0:01:11]} Ke5 {[%emt 0:00:17]} 55. Qb5+ {[%emt 0:00:01]} Kxe4 {[%emt 0:01:01]} 56. Qb1+ {[%emt 0:00:04]} Ke3 {[%emt 0:05:23]} (56... Kd4 $142 57. Qb2+ Kxc4 58. Qe2+ Kd4 59. Qd2+ Kc4 60. Qe2+ Kd4 61. Qd2+ Kc5 62. Qc3+ Kd5 63. Qd3+ Ke5 64. Qe2+ (64. Qb5+ Bd5 $16) 64... Kd6 65. Qd3+ Ke6 66. Qa6+ Ke7 67. Qe2+ Kd6 68. Qd3+ Ke6) 57. Qb6+ {[%emt 0:01:09]} ({Less strong is} 57. Qc1+ Ke4 58. Qc2+ Ke3 59. Qc1+ Ke4 $16) 57... Ke2 {[%emt 0:00:17]} 58. Qb2+ {[%emt 0:01:15]} Kf1 {[%emt 0:00:19]} 59. Qa1+ {[%emt 0:00:15]} Ke2 {[%emt 0:00:05]} 60. Qb2+ {[%emt 0:00:28]} Kf1 $1 {[%emt 0:00:17]} 61. Kh2 {[%emt 0:00:28] Strongly threatening Qd2.} Rg8 {[%emt 0:03:01]} 62. g4 {[%emt 0:00:16] Intending Qd2 and mate.} Re8 {[%emt 0:01:11]} 63. Qb5 $2 {[%emt 0:00:52]} (63. c5 $18 {Black must now prevent Qd2.} Bd5 64. a6) 63... Re3 $11 {[%emt 0:00:45] The position is equal.} 64. c5+ {[%emt 0:00:46]} Ke1 {[%emt 0:00:11]} 65. Qb1+ {[%emt 0:00:25]} Ke2 {[%emt 0:00:10]} 66. Qc2+ {[%emt 0:00:11]} Ke1 {[%emt 0:00:13]} 67. Qc1+ {[%emt 0:00:43]} Ke2 {[%emt 0:00:04]} 68. Qc2+ {[%emt 0:00:40] Weighted Error Value: White=0.15 (very precise) /Black=0.45} 1/2-1/2